bitfinex/quotes_ETHUSD_20250314
["timestamp","ask_amount","ask_price","bid_price","bid_amount"]
[1741990201045,7.801442,1928.7,1928.4,5.18563]
[1741990201278,0.05826476,1928.5,1928.4,5.18563]
[1741990201739,7.801442,1928.7,1928.4,10.37114]
[1741990202032,0.05826476,1928.5,1928.4,10.37114]
[1741990202237,7.801442,1928.7,1928.5,5.18534]
[1741990203031,7.801442,1928.7,1928.4,5.18555]
[1741990203238,7.801442,1928.7,1928.5,5.18527]
[1741990206746,0.05825822,1928.6,1928.5,5.18527]
[1741990206910,7.801442,1928.7,1928.5,5.18527]
[1741990207120,0.05825822,1928.6,1928.5,5.18527]
[1741990207432,7.801442,1928.7,1928.5,5.18527]
[1741990207731,0.05825822,1928.6,1928.5,5.18527]
[1741990207933,7.801442,1928.7,1928.5,5.18527]
[1741990208134,0.05825822,1928.6,1928.5,5.18527]
[1741990208533,4.896,1928.6,1928.5,5.18527]
[1741990208753,4.95425822,1928.6,1928.5,5.18527]
[1741990214964,4.95425822,1928.6,1928.4,10.37109]
[1741990215558,4.95425822,1928.6,1928.5,5.18537]
[1741990215762,6.05968404,1928.6,1928.4,5.18554]
[1741990215962,6.05968404,1928.6,1928.4,10.37105]
[1741990216135,6.05968404,1928.6,1928.5,5.18537]
[1741990216747,6.05968404,1928.6,1928.4,5.18551]
[1741990216924,0.8193,1928.5,1928.3,5.18588]
[1741990217117,0.8193,1928.5,1928.2,5.18603]
[1741990217330,0.05505821,1928.4,1928.2,5.18603]
[1741990217960,0.8193,1928.2,1927.9,5.18691]
[1741990218166,10.996,1928.1,1927.9,10.37373]
[1741990218534,11.05057968,1928.1,1927.9,10.37373]
[1741990219072,11.05057968,1928.1,1927.9,5.18682]
[1741990219272,12.23756765,1928.1,1927.9,5.18682]
[1741990220064,11.05057968,1928.1,1927.9,10.37362]
[1741990220387,11.05057968,1928.1,1927.9,5.1868]
[1741990224068,11.05057968,1928.1,1927.8,5.18706]
[1741990224589,16.23703968,1928.1,1927.7,5.18747]
[1741990225169,16.23703968,1928.1,1927.7,10.37483]
[1741990225368,18.46130765,1928.1,1927.7,10.37483]
[1741990225891,6.9193,1928.0,1927.6,5.18778]
[1741990226077,0.8193,1927.8,1927.5,5.18797]
[1741990226300,10.997,1927.7,1927.5,5.18797]
[1741990226590,11.04980545,1927.7,1927.5,5.18797]
[1741990226884,12.23143545,1927.7,1927.4,10.37636]
[1741990228189,12.23143545,1927.7,1927.5,5.18804]
[1741990228787,12.23143545,1927.7,1927.4,5.18812]
[1741990228958,12.23143545,1927.7,1927.4,10.37632]
[1741990230099,12.23143545,1927.7,1927.5,5.18804]
[1741990231615,12.23143545,1927.7,1927.5,5.18795]
[1741990231616,11.04980545,1927.7,1927.5,5.18795]
[1741990231912,6.15280545,1927.7,1927.6,5.96899]
[1741990232082,11.05080545,1927.7,1927.6,5.96899]
[1741990233107,11.10558899,1927.7,1927.6,5.96899]
[1741990233816,6.20758899,1927.7,1927.6,5.96899]
[1741990234672,6.20758899,1927.7,1927.6,6.02086234]
[1741990235721,8.99e-06,1927.7,1927.6,9.02086234]
[1741990235870,0.10389606,1927.7,1927.6,9.02086234]
[1741990236071,4.898,1928.1,1928.0,5.96792]
[1741990236912,5.00269105,1928.1,1928.0,5.96792]
[1741990245238,5.00269105,1928.1,1928.0,6.35535631]
[1741990246531,5.00269105,1928.1,1928.0,5.57415631]
[1741990251737,5.00269105,1928.1,1928.0,8.57415631]
[1741990253856,5.00269105,1928.1,1928.0,5.57415631]
[1741990255638,5.00269105,1928.1,1928.0,5.18672]
[1741990263740,5.98324,1928.0,1927.5,0.39017386]
[1741990263939,0.7965,1927.9,1927.7,5.18749]
[1741990264245,0.89960615,1927.9,1927.7,5.18749]
[1741990265340,0.89960615,1927.9,1927.8,5.18726]
[1741990266745,0.89960615,1927.9,1927.7,5.18749]
[1741990267048,1.59956677,1927.9,1927.6,5.18777]
[1741990267637,6.78656677,1927.9,1927.5,5.1879]
[1741990267841,6.78656677,1927.9,1927.5,10.3758]
[1741990269755,6.78656677,1927.9,1927.5,5.1879]
[1741990270051,0.7965,1927.7,1927.5,5.1879]
[1741990270344,4.897,1927.6,1927.5,5.1879]
[1741990270551,4.99962174,1927.6,1927.5,5.1879]
[1741990273651,4.99962174,1927.6,1927.4,5.18832]
[1741990277627,4.99962174,1927.6,1927.4,10.37656]
[1741990279359,0.10262174,1927.6,1927.5,5.18806]
[1741990279534,5.00062174,1927.6,1927.5,5.18806]
[1741990279741,4.898,1927.6,1927.5,5.18806]
[1741990279923,4.99641941,1927.6,1927.5,5.18806]
[1741990284138,4.99641941,1927.6,1927.5,6.24624124]
[1741990285162,0.09841941,1927.6,1927.5,6.24624124]
[1741990285662,4.897,1927.7,1927.6,5.18779]
[1741990288336,4.897,1927.7,1927.5,5.18806]
[1741990288954,5.7168,1927.7,1927.5,5.18806]
[1741990289870,5.7168,1927.7,1927.4,5.1883]
[1741990290069,6.807226,1927.7,1927.4,5.1883]
[1741990292172,11.994796,1927.7,1927.3,5.18847]
[1741990292356,11.994796,1927.7,1927.3,10.37693]
[1741990293445,6.807226,1927.7,1927.4,5.18827]
[1741990296683,6.807226,1927.7,1927.4,5.18817]
[1741990296869,0.09879198,1927.6,1927.4,5.18817]
[1741990297378,5.7168,1927.7,1927.4,5.18817]
[1741990297576,0.09859765,1927.5,1927.4,5.18817]
[1741990297749,5.7168,1927.7,1927.4,5.18817]
[1741990297947,0.09859765,1927.5,1927.4,5.18817]
[1741990298153,5.7168,1927.7,1927.4,5.18817]
[1741990298451,0.09862469,1927.5,1927.4,5.18817]
[1741990298651,5.7168,1927.7,1927.4,5.18817]
[1741990298851,0.09862469,1927.5,1927.4,5.18817]
[1741990299073,5.7168,1927.7,1927.4,5.18817]
[1741990299273,0.09862469,1927.5,1927.4,5.18817]
[1741990299475,5.7168,1927.7,1927.4,5.18817]
[1741990299679,0.09862469,1927.5,1927.4,5.18817]
[1741990300176,5.7168,1927.7,1927.5,5.18799]
[1741990300379,5.7168,1927.7,1927.6,5.18779]
[1741990300681,4.897,1927.7,1927.6,5.18779]
[1741990307384,6.1,1927.8,1927.6,5.18779]
[1741990307591,4.897,1927.7,1927.6,5.18779]
[1741990308265,4.897,1927.7,1927.5,5.18805]
[1741990308602,0.8169,1927.6,1927.4,5.18831]
[1741990309004,0.8169,1927.6,1927.4,10.37649]
[1741990309961,0.8169,1927.6,1927.5,5.18806]
[1741990311897,0.9156973,1927.6,1927.5,5.18806]
[1741990314296,0.9156973,1927.6,1927.3,5.18857]
[1741990314297,0.9156973,1927.6,1927.4,5.18831]
[1741990314501,0.9156973,1927.6,1927.4,5.18814]
[1741990314800,0.0987973,1927.6,1927.5,5.18806]
[1741990315216,4.897,1927.7,1927.5,5.18806]
[1741990315508,0.09882969,1927.6,1927.5,5.18806]
[1741990316006,4.897,1927.7,1927.5,5.18806]
[1741990316213,0.09882969,1927.6,1927.5,5.18806]
[1741990316607,4.897,1927.7,1927.5,5.18806]
[1741990316767,0.09882969,1927.6,1927.5,5.18806]
[1741990317100,4.897,1927.7,1927.5,5.18806]
[1741990317281,0.09882969,1927.6,1927.5,5.18806]
[1741990317736,4.897,1927.7,1927.5,5.18806]
[1741990317901,0.09508688,1927.6,1927.5,5.18806]
[1741990318098,4.897,1927.7,1927.5,5.18806]
[1741990318324,0.0950922,1927.6,1927.5,5.18806]
[1741990318522,4.9920922,1927.6,1927.5,5.18806]
[1741990318722,4.897,1927.6,1927.5,5.18806]
[1741990318925,4.9920922,1927.6,1927.5,5.18806]
[1741990323542,5.49130142,1927.6,1927.3,5.18859]
[1741990323714,5.49130142,1927.6,1927.0,0.7794]
[1741990323715,11.47123142,1927.6,1927.0,0.7794]
[1741990324036,22.75923142,1927.6,1927.2,5.18877]
[1741990324235,5.18806,1927.5,1927.2,5.18877]
[1741990324640,0.09116497,1927.4,1927.2,5.18877]
[1741990325643,17.47619922,1927.6,1927.2,5.18877]
[1741990325813,1.83892516,1927.5,1927.2,5.18877]
[1741990326242,1.83892516,1927.5,1927.1,5.18914]
[1741990326243,7.02713516,1927.5,1927.1,5.18914]
[1741990326412,7.02713516,1927.5,1927.1,10.37812]
[1741990327523,7.02713516,1927.5,1927.2,5.18886]
[1741990328231,1.83892516,1927.5,1927.2,5.18886]
[1741990329244,16.06612,1927.4,1927.0,5.18933]
[1741990329552,6.88605877,1927.3,1926.8,5.58385844]
[1741990329735,6.88605877,1927.3,1926.8,5.18982]
[1741990329736,5.98106,1927.2,1926.8,5.18982]
[1741990330141,5.98106,1927.2,1926.5,8.19054]
[1741990330142,5.9816,1927.0,1926.6,5.1904]
[1741990330311,4.897,1926.9,1926.6,5.19031]
[1741990330518,4.98701026,1926.9,1926.6,10.38068]
[1741990330741,4.98701026,1926.9,1926.7,5.19018]
[1741990331347,4.98701026,1926.9,1926.8,5.18995]
[1741990334549,4.98701026,1926.9,1926.8,8.18995]
[1741990335248,0.09001026,1926.9,1926.8,8.18995]
[1741990335451,4.897,1927.0,1926.9,5.18968]
[1741990335754,4.98371252,1927.0,1926.9,5.18968]
[1741990337045,0.08671252,1927.0,1926.9,9.04438]
[1741990337549,4.897,1927.2,1927.1,5.18914]
[1741990339816,0.7946,1927.4,1927.2,5.18886]
[1741990340039,4.897,1927.3,1927.2,5.18886]
[1741990341964,4.98431479,1927.3,1927.2,5.18886]
[1741990345175,4.98431479,1927.3,1927.1,5.18914]
[1741990345358,4.98431479,1927.3,1927.1,10.37814]
[1741990346472,4.98431479,1927.3,1927.2,5.18887]
[1741990347941,5.81891479,1927.3,1927.2,5.18887]
[1741990350175,4.98431479,1927.3,1927.2,5.18887]
[1741990350871,0.8346,1927.2,1926.8,1.02052278]
[1741990351035,0.08700727,1927.1,1926.8,5.18983]
[1741990351239,17.31261,1927.2,1926.8,5.18983]
[1741990351434,0.08700727,1927.1,1926.8,5.18983]
[1741990351669,17.31261,1927.2,1926.8,5.18983]
[1741990351966,7.00745827,1927.1,1926.7,5.19021]
[1741990352169,0.8346,1927.0,1926.7,5.19021]
[1741990352470,4.98214822,1926.9,1926.7,5.19021]
[1741990353163,4.98214822,1926.9,1926.7,10.38028]
[1741990353470,4.98214822,1926.9,1926.7,5.19007]
[1741990353771,4.98214822,1926.9,1926.7,10.38012]
[1741990354153,5.56382304,1926.9,1926.6,5.19034]
[1741990354572,5.56382304,1926.9,1926.7,5.19019]
[1741990355278,5.56382304,1926.9,1926.6,10.38067]
[1741990355481,5.56382304,1926.9,1926.6,10.38066]
[1741990355777,4.98214822,1926.9,1926.5,3.83850329]
[1741990356349,0.08614822,1926.9,1926.8,8.18995]
[1741990356566,4.897,1926.9,1926.8,8.18995]
[1741990356768,4.97980027,1926.9,1926.8,8.18995]
[1741990357646,4.97980027,1926.9,1926.8,8.96255]
[1741990358378,0.08280027,1926.9,1926.8,8.96255]
[1741990358584,4.897,1927.1,1927.0,5.18941]
[1741990358751,0.7981,1927.4,1927.1,5.18897]
[1741990358946,4.897,1927.3,1927.1,5.18897]
[1741990359380,4.897,1927.3,1927.1,10.37791]
[1741990359581,4.897,1927.3,1927.1,5.18894]
[1741990362265,4.897,1927.2,1927.1,5.18894]
[1741990362465,4.897,1927.2,1926.9,5.18962]
[1741990362666,0.7847,1927.1,1926.9,5.18962]
[1741990363078,0.7847,1927.1,1926.8,5.18973]
[1741990363261,0.7847,1927.1,1926.7,10.38024]
[1741990363262,5.9739,1927.1,1926.7,10.38024]
[1741990363871,0.7847,1927.1,1926.7,10.38024]
[1741990364188,0.7847,1927.1,1926.8,5.1899]
[1741990364488,1.920736,1927.1,1926.9,5.18965]
[1741990364888,4.897,1927.0,1926.9,5.18965]
[1741990367970,4.897,1927.0,1926.8,5.1899]
[1741990370265,4.897,1927.0,1926.7,5.19019]
[1741990370473,4.897,1927.0,1926.7,10.38024]
[1741990371062,4.897,1927.0,1926.8,5.18985]
[1741990371792,0.07653574,1926.9,1926.8,5.18985]
[1741990372496,0.07653574,1926.9,1926.8,6.02495]
[1741990372693,10.997,1927.1,1927.0,5.18941]
[1741990373064,6.1,1927.1,1927.0,5.18941]
[1741990373290,10.997,1927.1,1927.0,5.18941]
[1741990373814,6.8847,1927.5,1927.3,5.18846]
[1741990374090,4.897,1927.4,1927.3,5.18846]
[1741990375076,4.897,1927.4,1927.1,5.18904]
[1741990375775,4.897,1927.4,1927.1,10.37801]
[1741990376192,4.897,1927.4,1927.2,5.18878]
[1741990376368,4.897,1927.4,1927.3,5.1886]
[1741990380574,4.897,1927.4,1927.2,5.18881]
[1741990380781,4.897,1927.4,1927.3,5.1886]
[1741990382098,4.897,1927.4,1927.2,10.3775]
[1741990382291,4.897,1927.4,1927.3,5.1886]
[1741990382686,4.897,1927.4,1927.2,5.18872]
[1741990383191,4.897,1927.4,1927.3,5.1886]
[1741990384803,6.9053,1927.7,1927.5,5.18796]
[1741990384972,4.896,1927.6,1927.5,5.18796]
[1741990385812,6.1,1927.7,1927.6,5.18779]
[1741990385977,10.996,1927.7,1927.6,5.18779]
[1741990386796,11.07381662,1927.7,1927.6,5.18779]
[1741990388489,11.07381662,1927.7,1927.6,6.01099]
[1741990388806,0.07781662,1927.7,1927.6,6.01099]
[1741990389036,0.07781662,1927.7,1927.6,6.06286268]
[1741990389603,4.896,1927.8,1927.7,5.18752]
[1741990389906,0.07821804,1927.8,1927.7,5.18752]
[1741990390088,0.07821804,1927.8,1927.7,5.23938884]
[1741990390976,0.07821804,1927.8,1927.7,5.18752]
[1741990391303,0.07821804,1927.8,1927.7,5.23938886]
[1741990391492,0.07821804,1927.8,1927.7,5.18752]
[1741990391695,0.07821804,1927.8,1927.7,5.23938886]
[1741990392920,4.895,1928.0,1927.9,5.18699]
[1741990395009,6.1,1928.3,1928.1,5.18625]
[1741990395219,4.895,1928.2,1928.1,10.37257]
[1741990395601,4.895,1928.2,1928.1,5.18625]
[1741990397317,6.9419,1928.4,1928.1,10.37256]
[1741990397492,4.894,1928.3,1928.2,5.18617]
[1741990399092,0.8419,1928.6,1928.1,0.8193]
[1741990399292,18.0019,1928.8,1928.6,5.18493]
[1741990399504,4.894,1928.7,1928.6,5.18493]
[1741990399720,6.1,1928.9,1928.7,5.18483]
[1741990399909,4.894,1928.8,1928.7,5.18483]
[1741990400293,6.1,1928.9,1928.7,5.18483]
[1741990400498,4.894,1928.8,1928.7,5.18483]
[1741990400908,4.894,1928.8,1928.6,5.18508]
[1741990401095,4.894,1928.8,1928.4,5.18555]
[1741990401096,0.8419,1928.7,1928.4,5.18555]
[1741990401292,0.8419,1928.7,1928.6,5.1851]
[1741990401496,0.8419,1928.7,1928.5,5.1852]
[1741990402020,0.06645432,1928.6,1928.5,5.1852]
[1741990402221,4.894,1928.8,1928.5,5.1852]
[1741990402427,0.06659442,1928.7,1928.6,5.18496]
[1741990403636,4.95959442,1928.7,1928.6,5.18496]
[1741990403803,4.893,1928.7,1928.6,5.18496]
[1741990404129,4.95729425,1928.7,1928.6,5.18496]
[1741990406013,0.06429425,1928.7,1928.6,5.18496]
[1741990406201,4.893,1928.8,1928.7,5.18483]
[1741990406510,4.95752027,1928.8,1928.7,5.18483]
[1741990411837,0.06452027,1928.8,1928.7,5.18483]
[1741990412039,4.95652027,1928.8,1928.7,5.18483]
[1741990412240,4.892,1928.8,1928.7,5.18483]
[1741990412410,4.95615257,1928.8,1928.7,5.18483]
[1741990415844,4.95615257,1928.8,1928.6,10.36992]
[1741990416054,4.95615257,1928.8,1928.7,5.18483]
[1741990417046,5.45176783,1928.8,1928.5,5.18533]
[1741990417346,4.95615257,1928.8,1928.7,5.18483]
[1741990418443,4.95615257,1928.8,1928.6,5.18506]
[1741990418750,5.76355257,1928.8,1928.6,5.18506]
[1741990418949,5.76355257,1928.8,1928.5,5.18529]
[1741990419842,5.76355257,1928.8,1928.4,6.23207208]
[1741990419843,17.04825257,1928.8,1928.4,5.18557]
[1741990420032,0.57635526,1928.7,1928.4,10.37105]
[1741990420231,0.06132406,1928.6,1928.4,10.37105]
[1741990420431,0.57635526,1928.7,1928.4,10.37105]
[1741990420631,0.06132406,1928.6,1928.4,10.37105]
[1741990420827,0.57635526,1928.7,1928.4,10.37105]
[1741990421034,0.06132406,1928.6,1928.4,5.18548]
[1741990421325,0.57635526,1928.7,1928.4,5.18548]
[1741990421524,0.06118394,1928.5,1928.4,5.18548]
[1741990421739,0.57635526,1928.7,1928.4,5.18548]
[1741990421939,0.06118394,1928.5,1928.4,5.18548]
[1741990422140,0.57635526,1928.7,1928.4,5.18548]
[1741990422337,0.06118394,1928.5,1928.4,5.18548]
[1741990422845,0.57635526,1928.7,1928.4,10.37091]
[1741990423020,0.06118394,1928.5,1928.4,10.37091]
[1741990423221,0.57635526,1928.7,1928.4,10.37091]
[1741990423446,0.06132406,1928.6,1928.4,5.18543]
[1741990423833,0.57635526,1928.7,1928.4,5.18543]
[1741990424061,0.06132406,1928.6,1928.5,5.18529]
[1741990424433,4.891,1928.7,1928.6,5.1851]
[1741990424747,4.95258679,1928.7,1928.6,5.1851]
[1741990425153,4.95258679,1928.7,1928.6,6.0112]
[1741990426582,0.06158679,1928.7,1928.6,6.0112]
[1741990426752,4.95258679,1928.7,1928.5,5.18529]
[1741990426956,4.95258679,1928.7,1928.6,5.1851]
[1741990426957,6.14000547,1928.7,1928.6,5.1851]
[1741990427151,4.95258679,1928.7,1928.6,5.1851]
[1741990429557,4.95258679,1928.7,1928.5,5.18533]
[1741990430862,4.95258679,1928.7,1928.6,5.1851]
[1741990431734,4.95258679,1928.7,1928.5,5.18527]
[1741990432135,4.95258679,1928.7,1928.5,10.37047]
[1741990432660,4.95258679,1928.7,1928.5,5.1852]
[1741990434375,4.95258679,1928.7,1928.5,10.3704]
[1741990434772,4.95258679,1928.7,1928.5,5.1852]
[1741990435340,6.14000547,1928.7,1928.2,0.8261]
[1741990435537,0.8216,1928.5,1928.3,5.18567]
[1741990435758,0.8216,1928.5,1928.4,5.18564]
[1741990436068,6.14000547,1928.7,1928.4,5.18564]
[1741990436069,0.8216,1928.6,1928.4,5.18564]
[1741990436252,1.51160187,1928.6,1928.4,5.18564]
[1741990437280,6.69683187,1928.6,1928.2,5.18608]
[1741990437794,5.18541,1928.5,1928.1,5.18636]
[1741990438347,5.96507,1928.3,1927.8,5.99842]
[1741990438548,4.891,1928.2,1927.9,5.18681]
[1741990438781,4.891,1928.2,1928.0,5.18658]
[1741990441795,5.458,1928.2,1927.9,5.18681]
[1741990442285,0.779,1928.0,1927.7,5.18742]
[1741990442593,0.779,1928.0,1927.8,5.18722]
[1741990443291,10.64425,1928.2,1927.8,5.18715]
[1741990443292,10.6442,1928.2,1927.8,5.18715]
[1741990443461,0.779,1928.1,1927.8,5.18715]
[1741990444152,0.779,1928.1,1927.8,10.37426]
[1741990444367,0.779,1928.1,1927.8,5.18711]
[1741990445092,0.779,1928.1,1927.8,10.37422]
[1741990445290,0.779,1928.1,1927.8,5.18711]
[1741990446269,3.049962,1928.1,1927.8,5.18711]
[1741990446891,0.05868546,1928.0,1927.8,5.18711]
[1741990448212,0.05868546,1928.0,1927.9,5.18699]
[1741990448380,0.05868546,1928.0,1927.9,6.05005721]
[1741990448381,4.95068546,1928.0,1927.9,6.05005721]
[1741990448579,4.95068546,1928.0,1927.9,5.99819]
[1741990450783,4.95068546,1928.0,1927.9,5.18699]
[1741990453316,4.95068546,1928.0,1927.9,5.96809]
[1741990453807,0.05868546,1928.0,1927.9,5.96809]
[1741990454011,4.95068546,1928.0,1927.9,5.96809]
[1741990454207,4.892,1928.0,1927.9,5.96809]
[1741990454416,4.95028343,1928.0,1927.9,5.96809]
[1741990456004,4.95028343,1928.0,1927.9,5.18699]
[1741990457290,0.05828343,1928.0,1927.9,5.18699]
[1741990457814,4.892,1928.1,1928.0,5.18672]
[1741990462023,4.94788488,1928.1,1928.0,5.18672]
[1741990463615,0.05588488,1928.1,1928.0,5.18672]
[1741990463924,4.892,1928.1,1928.0,5.18672]
[1741990464145,6.1,1928.4,1928.3,5.18591]
[1741990464327,4.892,1928.4,1928.3,5.18591]
[1741990468947,4.892,1928.4,1928.2,5.18609]
[1741990469115,4.892,1928.4,1928.3,5.18591]
[1741990469818,4.892,1928.4,1928.2,5.18609]
[1741990470143,4.892,1928.4,1928.2,10.37212]
[1741990470344,6.8892,1928.6,1928.3,5.18591]
[1741990470538,4.892,1928.5,1928.3,5.18591]
[1741990473149,4.892,1928.5,1928.2,5.18603]
[1741990473314,4.892,1928.5,1928.2,10.37205]
[1741990474247,4.892,1928.5,1928.3,5.18591]
[1741990476663,4.892,1928.5,1928.2,5.18602]
[1741990476951,0.05515562,1928.4,1928.2,5.18602]
[1741990477153,0.85775562,1928.4,1928.1,5.18627]
[1741990477344,6.04344562,1928.4,1928.0,10.37327]
[1741990477520,0.85775562,1928.4,1928.1,5.18643]
[1741990486462,6.04344562,1928.4,1928.1,5.18643]
[1741990486766,7.83726593,1928.4,1928.1,5.18644]
[1741990489339,7.83726593,1928.4,1928.0,10.37318]
[1741990491067,7.78211031,1928.4,1928.0,10.37318]
[1741990491569,5.186,1928.3,1927.9,5.18696]
[1741990491775,0.7847,1928.2,1928.0,5.18658]
[1741990491975,4.891,1928.1,1928.0,5.18658]
[1741990495391,4.891,1928.1,1928.0,10.37314]
[1741990495672,4.891,1928.1,1928.0,5.18656]
[1741990499089,4.891,1928.1,1928.0,5.18672]
[1741990501884,4.891,1928.1,1927.9,5.18688]
[1741990502665,4.891,1928.1,1928.0,5.18672]
[1741990511504,6.1,1928.3,1928.2,5.18618]
[1741990511689,10.99,1928.3,1928.2,5.18618]
[1741990513500,6.1,1928.3,1928.2,5.18618]
[1741990513700,10.99,1928.3,1928.2,5.18618]
[1741990514600,4.89,1928.3,1928.2,5.18618]
[1741990515101,6.1,1928.7,1928.5,5.18537]
[1741990515397,0.8218,1928.9,1928.7,5.18483]
[1741990515611,0.8218,1929.1,1928.8,5.18457]
[1741990515777,4.89,1929.0,1928.8,5.18457]
[1741990516792,4.89,1929.1,1929.0,5.18401]
[1741990516973,4.89,1929.1,1928.9,10.36842]
[1741990517175,4.89,1929.1,1929.0,5.18403]
[1741990521186,6.9218,1929.4,1929.1,5.18359]
[1741990521382,4.889,1929.3,1929.1,5.18359]
[1741990521908,4.889,1929.3,1929.1,10.36718]
[1741990523705,4.889,1929.3,1929.1,5.18359]
[1741990525711,4.889,1929.3,1928.9,5.57864796]
[1741990526006,0.8218,1929.2,1928.9,5.18415]
[1741990526206,0.8218,1929.2,1929.0,5.18394]
[1741990526729,1.39288,1929.2,1928.9,5.18415]
[1741990528819,0.57108,1929.2,1929.0,3.0]
[1741990529125,5.7208,1929.3,1929.0,8.18402]
[1741990531096,5.7208,1929.3,1929.0,5.18402]
[1741990533126,5.7208,1929.3,1928.9,5.18421]
[1741990534094,5.7208,1929.3,1928.9,10.36836]
[1741990534496,5.7208,1929.3,1929.0,5.18399]
[1741990535023,5.7208,1929.3,1928.9,5.57849511]
[1741990536329,6.90288,1929.3,1928.9,5.57849511]
[1741990536627,6.90288,1929.3,1928.9,5.57848511]
[1741990536822,6.90288,1929.3,1928.8,5.18454]
[1741990536823,6.07108,1929.3,1928.8,5.18454]
[1741990537014,0.8318,1929.2,1928.7,5.1848]
[1741990537326,0.8318,1929.2,1928.7,5.18469]
[1741990538109,0.8318,1929.2,1928.8,3.0]
[1741990538431,1.522088,1929.2,1928.8,3.0]
[1741990539441,1.522088,1929.2,1928.8,5.18447]
[1741990541038,7.622088,1929.2,1928.8,5.18447]
[1741990543801,4.887,1929.1,1928.8,5.18447]
[1741990544002,4.887,1929.1,1928.8,10.36889]
[1741990544230,4.887,1929.1,1928.8,5.18442]
[1741990544431,6.1,1929.2,1929.0,5.18385]
[1741990544624,4.887,1929.1,1929.0,5.18385]
[1741990545254,4.887,1929.1,1928.9,5.18429]
[1741990550559,4.887,1929.1,1928.8,5.18453]
[1741990550848,0.7768,1929.0,1928.7,13.36957]
[1741990551949,0.7768,1929.0,1928.8,5.18447]
[1741990552647,0.7768,1929.0,1928.8,5.18446]
[1741990553849,0.7768,1929.0,1928.7,5.18483]
[1741990554343,0.7768,1929.0,1928.7,8.18474]
[1741990554515,0.7768,1929.0,1928.9,3.0]
[1741990555050,6.1,1929.2,1928.9,5.9615]
[1741990555252,4.887,1929.1,1929.0,5.18379]
[1741990555850,6.1,1929.2,1929.1,5.18376]
[1741990556047,10.987,1929.2,1929.1,5.18376]
[1741990556250,6.1,1929.2,1929.1,5.18376]
[1741990556464,17.9228,1929.6,1929.4,5.18285]
[1741990556667,4.887,1929.5,1929.4,5.18285]
[1741990558318,4.887,1929.5,1929.3,5.18297]
[1741990560756,4.887,1929.5,1929.3,10.36603]
[1741990560943,4.887,1929.5,1929.4,5.18295]
[1741990561333,17.146,1929.6,1929.4,5.18295]
[1741990561626,4.886,1929.5,1929.4,8.18295]
[1741990562535,4.886,1929.5,1929.4,5.18295]
[1741990562857,5.7384,1929.5,1929.2,5.18346]
[1741990563029,6.31224,1929.5,1929.2,5.18336]
[1741990563358,6.31224,1929.5,1929.2,5.18349]
[1741990563649,6.31224,1929.5,1929.2,5.18337]
[1741990563949,6.31224,1929.5,1929.2,5.18343]
[1741990564126,6.31224,1929.5,1929.1,5.18367]
[1741990565223,6.31224,1929.5,1929.1,10.36731]
[1741990565744,6.31224,1929.5,1929.2,5.18347]
[1741990568959,6.31224,1929.5,1929.1,3.0]
[1741990569276,6.31224,1929.5,1929.1,8.18367]
[1741990569462,0.631224,1929.4,1929.1,8.18367]
[1741990570030,5.7384,1929.5,1929.1,5.18367]
[1741990570330,5.7384,1929.5,1929.2,5.18348]
[1741990570665,0.8524,1929.4,1929.0,5.18391]
[1741990570833,6.9524,1929.4,1929.0,5.18391]
[1741990572439,1.50298,1929.3,1928.9,5.18406]
[1741990572935,1.50298,1929.3,1928.9,10.36821]
[1741990573237,1.50298,1929.3,1928.8,3.0]
[1741990573443,6.1,1929.4,1929.1,5.18365]
[1741990575244,6.1,1929.4,1929.3,5.18322]
[1741990576063,10.986,1929.4,1929.3,5.18322]
[1741990576264,4.886,1929.4,1929.3,5.18322]
[1741990576731,4.886,1929.4,1929.2,5.18332]
[1741990576931,4.886,1929.4,1929.2,10.36663]
[1741990577165,4.886,1929.4,1929.2,5.18331]
[1741990577534,4.886,1929.4,1929.1,5.18365]
[1741990577934,4.886,1929.4,1929.1,5.18362]
[1741990578367,4.886,1929.4,1929.2,5.18349]
[1741990578665,4.886,1929.3,1929.2,5.18349]
[1741990580032,4.886,1929.3,1929.1,5.18362]
[1741990580240,4.886,1929.3,1929.0,5.18401]
[1741990580451,0.8118,1929.2,1928.9,6.21212646]
[1741990580652,0.8118,1929.2,1928.9,5.18418]
[1741990581377,1.38158,1929.2,1928.9,5.18418]
[1741990582272,0.8118,1929.2,1929.0,5.18402]
[1741990586089,0.8118,1929.2,1929.0,10.36793]
[1741990586396,0.8118,1929.2,1929.0,5.18391]
[1741990588272,0.7866,1929.5,1929.2,5.18338]
[1741990588481,4.886,1929.4,1929.2,5.18338]
[1741990589251,5.45326,1929.4,1929.2,5.18338]
[1741990589546,5.45326,1929.4,1929.1,5.18373]
[1741990589752,5.45326,1929.4,1929.1,10.36737]
[1741990591887,4.866,1929.4,1929.1,10.36737]
[1741990592454,4.866,1929.4,1929.2,5.18348]
[1741990594685,4.866,1929.4,1929.1,5.18364]
[1741990594891,0.7866,1929.3,1929.1,5.18364]
[1741990597276,0.7866,1929.3,1929.0,5.18402]
[1741990597482,1.35186,1929.3,1929.0,5.18402]
[1741990597681,7.45186,1929.3,1928.9,7.64201416]
[1741990597987,7.45186,1929.3,1929.0,7.64166416]
[1741990598389,7.45186,1929.3,1929.0,5.18391]
[1741990599361,7.45186,1929.3,1929.0,10.36781]
[1741990599560,7.45186,1929.3,1929.0,5.1839]
[1741990602289,6.1,1929.3,1929.2,5.18349]
[1741990602490,10.985,1929.3,1929.2,5.18349]
[1741990602674,4.885,1929.3,1929.2,5.18349]